[Event "Emanuel Lasker Open 2017"]
[Site "Gorzow"]
[Date "2017.06.14"]
[Round "3"]
[White "Sabuk, Piotr"]
[Black "Kubicka, Anna"]
[Result "1-0"]
[ECO "E90"]
[WhiteElo "2368"]
[BlackElo "2168"]
[Annotator "ChessBase"]
[PlyCount "51"]
[EventDate "2017.??.??"]
[EventType "swiss"]
[EventCountry "POL"]
[SourceTitle "playchess.com"]
[Source "ChessBase"]
[SourceQuality "1"]
[TimeControl "40/5400+30:1800+30"]

1. d4 {[%emt 0:00:00]} Nf6 {[%emt 0:00:34]} 2. c4 {[%emt 0:00:15]} g6 {[%emt 0:00:08]} 3. Nc3 {[%emt 0:00:39]} Bg7 {[%emt 0:00:08]} 4. e4 {[%emt 0:00:17]} d6 {[%emt 0:00:06]} 5. Nf3 {[%emt 0:00:47]} O-O {[%emt 0:00:12]} 6. h3 {[%emt 0:00:45]} Na6 {[%emt 0:00:22]} 7. Be3 {[%emt 0:04:53]} e5 {[%emt 0:01:13]} 8. d5 {[%emt 0:03:04]} Nh5 {[%emt 0:01:13]} 9. g3 {[%emt 0:04:10]} Qe8 {[%emt 0:01:20]} 10. Be2 {[%emt 0:05:14]} f5 {[%emt 0:01:16]} 11. exf5 {[%emt 0:01:24]} gxf5 {[%emt 0:06:19]} 12. Nh4 {[%emt 0:00:37]} Nf6 {[%emt 0:01:18]} 13. Qc2 {[%emt 0:02:27]} Nc5 {[%emt 0:09:54]} 14. O-O-O {[%emt 0:07:49]} c6 {[%emt 0:14:32]} 15. g4 {[%emt 0:14:47]} cxd5 {[%emt 0:06:03]} 16. cxd5 {[%emt 0:02:54]} Nce4 {[%emt 0:11:41]} 17. Nxe4 {[%emt 0:07:23]} Nxe4 {[%emt 0:06:19]} 18. Kb1 {[%emt 0:01:03]} Qd8 {[%emt 0:12:55]} 19. Nxf5 {[%emt 0:01:53]} Bxf5 {[%emt 0:00:42]} 20. gxf5 {[%emt 0:00:10]} Qh4 {[%emt 0:01:35]} 21. Bb5 {[%emt 0:08:57]} Rxf5 {[%emt 0:07:24]} 22. Rhg1 {[%emt 0:03:59]} Rg5 {[%emt 0:11:13]} 23. Bxg5 {[%emt 0:02:40]} Nxg5 {[%emt 0:00:02]} 24. Rg4 {[%emt 0:00:33]} Qh5 {[%emt 0:00:52]} 25. Rdg1 {[%emt 0:00:36]} h6 {[%emt 0:01:32]} 26. h4 {[%emt 0:01:10]} 1-0

[Event "Emanuel Lasker Open 2017"]
[Site "Gorzow"]
[Date "2017.06.14"]
[Round "3"]
[White "Aliavdin, Nikolai"]
[Black "Dzhuguryan, Tygran"]
[Result "1/2-1/2"]
[ECO "B12"]
[WhiteElo "2351"]
[BlackElo "2167"]
[Annotator "ChessBase"]
[PlyCount "118"]
[EventDate "2017.??.??"]
[EventType "swiss"]
[EventCountry "POL"]
[SourceTitle "playchess.com"]
[Source "ChessBase"]
[SourceQuality "1"]
[TimeControl "40/5400+30:1800+30"]

1. e4 {[%emt 0:00:00]} c6 {[%emt 0:00:28]} 2. d4 {[%emt 0:00:08]} d5 {[%emt 0:00:07]} 3. Nd2 {[%emt 0:00:10]} g6 {[%emt 0:00:12]} 4. Ngf3 {[%emt 0:00:39]} Bg7 {[%emt 0:00:11]} 5. Bd3 {[%emt 0:01:19]} Nd7 {[%emt 0:01:53]} 6. Qe2 {[%emt 0:02:08]} Nh6 {[%emt 0:00:29]} 7. O-O {[%emt 0:03:57]} O-O {[%emt 0:00:04]} 8. h3 {[%emt 0:02:25]} c5 {[%emt 0:05:19]} 9. dxc5 {[%emt 0:17:31]} Nxc5 {[%emt 0:00:23]} 10. exd5 {[%emt 0:00:10]} Qxd5 {[%emt 0:00:15]} 11. Bc4 {[%emt 0:00:30]} Qd6 {[%emt 0:00:18]} 12. Nb3 {[%emt 0:01:09]} Nf5 {[%emt 0:04:31]} 13. Rd1 {[%emt 0:01:13]} Qc7 {[%emt 0:00:14]} 14. c3 {[%emt 0:03:02]} Ne6 {[%emt 0:05:38]} 15. Bd3 {[%emt 0:14:40]} Nf4 {[%emt 0:02:13]} 16. Bxf4 {[%emt 0:00:21]} Qxf4 {[%emt 0:00:02]} 17. Bxf5 {[%emt 0:04:29]} Bxf5 {[%emt 0:00:08]} 18. Nbd4 {[%emt 0:00:26]} Be4 {[%emt 0:02:01]} 19. g3 {[%emt 0:02:49]} Bxf3 {[%emt 0:00:08]} 20. Nxf3 {[%emt 0:00:13]} Qc7 {[%emt 0:04:43]} 21. Rd3 {[%emt 0:01:08]} Rfd8 {[%emt 0:02:31]} 22. Rad1 {[%emt 0:00:19]} Rxd3 {[%emt 0:02:33]} 23. Qxd3 {[%emt 0:00:26]} Bf6 {[%emt 0:00:23]} 24. Nh2 {[%emt 0:07:49]} Rc8 {[%emt 0:09:04]} 25. Ng4 {[%emt 0:00:28]} Bg7 {[%emt 0:00:03]} 26. Qb5 {[%emt 0:02:00]} a6 {[%emt 0:00:25]} 27. Qd7 {[%emt 0:04:01]} h5 {[%emt 0:00:23]} 28. Ne3 {[%emt 0:00:34]} e6 {[%emt 0:00:23]} 29. h4 {[%emt 0:07:32]} Bf8 {[%emt 0:03:34]} 30. Ng2 {[%emt 0:02:01]} b5 {[%emt 0:03:35]} 31. a3 {[%emt 0:00:57]} Qxd7 {[%emt 0:03:39]} 32. Rxd7 {[%emt 0:00:06]} Bh6 {[%emt 0:03:07]} 33. Ne3 {[%emt 0:01:34]} Rc6 {[%emt 0:01:58]} 34. Kf1 {[%emt 0:00:14]} Bxe3 {[%emt 0:13:27]} 35. fxe3 {[%emt 0:00:14]} Rc4 {[%emt 0:01:22]} 36. Ra7 {[%emt 0:02:18]} Ra4 {[%emt 0:00:46]} 37. Ke2 {[%emt 0:01:13]} Kg7 {[%emt 0:00:23]} 38. Kf3 {[%emt 0:00:23]} Kf6 {[%emt 0:00:38]} 39. e4 {[%emt 0:02:11]} Ke5 {[%emt 0:00:30]} 40. Rxf7 {[%emt 0:00:00]} Rxe4 {[%emt 0:00:05]} 41. Rg7 {[%emt 0:04:12]} Rg4 {[%emt 0:00:30]} 42. b3 {[%emt 0:01:40]} Kf6 {[%emt 0:02:59]} 43. Ra7 {[%emt 0:00:21]} g5 {[%emt 0:00:02]} 44. Rxa6 {[%emt 0:05:09]} gxh4 {[%emt 0:00:06]} 45. gxh4 {[%emt 0:00:09]} Rxh4 {[%emt 0:00:07]} 46. Rb6 {[%emt 0:00:20]} Rh3+ {[%emt 0:00:32]} 47. Kg2 {[%emt 0:01:06]} Rxc3 {[%emt 0:00:11]} 48. Rxb5 {[%emt 0:00:05]} Ke7 {[%emt 0:02:41]} 49. a4 {[%emt 0:00:31]} Kd6 {[%emt 0:00:01]} 50. a5 {[%emt 0:04:36]} Kc6 {[%emt 0:00:08]} 51. Rb6+ {[%emt 0:00:14]} Kc7 {[%emt 0:00:02]} 52. b4 {[%emt 0:01:42]} Rc4 {[%emt 0:00:13]} 53. Kg3 {[%emt 0:03:08]} e5 {[%emt 0:13:33]} 54. b5 Ra4 55. Rc6+ Kd7 56. a6 Ra5 57. Rb6 Kc7 58. Rb7+ Kc8 59. Kh4 e4 1/2-1/2

[Event "Emanuel Lasker Open 2017"]
[Site "Gorzow"]
[Date "2017.06.14"]
[Round "3"]
[White "Bartnicki, Pawel"]
[Black "Michalski, Filip"]
[Result "1-0"]
[ECO "D66"]
[WhiteElo "2078"]
[BlackElo "2028"]
[Annotator "NA"]
[PlyCount "51"]
[EventDate "2017.??.??"]
[EventType "swiss"]
[EventCountry "POL"]
[SourceTitle "playchess.com"]
[Source "ChessBase"]
[SourceQuality "1"]
[TimeControl "40/5400+30:1800+30"]

{[%evp 8,43,23,18,32767,32767,32767,32767,32767,32767,32767,32767,32767,28,23,15,6,-2,51,32,32,32767,32767,3,1,32767,28,28,43,32767,44,53,44,32767,32767,111,135,129]} 1. d4 {[%emt 0:00:00]} Nf6 {[%emt 0:00:08]} 2. c4 {[%emt 0:00:00]} e6 {[%emt 0:00:06]} 3. Nf3 {[%emt 0:00:00]} d5 {[%emt 0:00:08]} 4. Nc3 {[%emt 0:00:32]} Be7 {[%emt 0:00:14]} 5. Bg5 {[%emt 0:00:57]} c6 {[%emt 0:00:34]} 6. e3 {[%emt 0:00:12]} O-O {[%emt 0:00:37]} 7. Rc1 {[%emt 0:00:14]} Nbd7 {[%emt 0:00:24]} 8. Bd3 {[%emt 0:00:54]} dxc4 {[%emt 0:06:25]} 9. Bxc4 {[%emt 0:00:12]} b5 {[%emt 0:00:21]} 10. Bd3 {[%emt 0:09:02]} a6 {[%emt 0:03:27]} 11. O-O {[%emt 0:05:40]} (11. Bxf6 $5 Nxf6 12. O-O $11) 11... c5 {[%emt 0:18:45]} 12. Bb1 {[%emt 0:27:07] D66: Queen's Gambit Declined: Classical: Main Line (7 Rc1 c6 8 Bd3)} (12. Bxf6 $5 gxf6 13. Be4 $14) (12. a4 bxa4 13. Qxa4 Bb7 14. Bb1 Bxf3 15. gxf3 cxd4 16. Qxd4 Qa5 17. Bxf6 Nxf6 18. Qh4 h6 19. Kh1 Rfd8 20. Rg1 {0-1 (31) Ovod,E (2380)-Morovic Fernandez,I (2550) Moscow 2017}) 12... c4 {[%emt 0:21:37]} 13. e4 $146 {[%emt 0:15:23]} ({Predecessor:} 13. Ne2 Bb7 14. Ng3 Nd5 15. Bxe7 Nxe7 16. Qe2 Ng6 17. Rfd1 Rc8 18. Nd2 Qe7 {½-½ (44) Kozubal,A (1688)-Burdzy,J (1730) Szklarska Poreba 2016}) 13... Bb7 {[%emt 0:05:18]} 14. e5 {[%emt 0:04:13]} Nd5 {[%emt 0:01:15]} 15. Qc2 {[%emt 0:02:46]} g6 {[%emt 0:01:55]} 16. Bh6 {[%emt 0:08:06]} Re8 {[%emt 0:02:05]} 17. Ne4 {[%emt 0:00:22]} N7b6 {[%emt 0:06:33]} 18. Qe2 {[%emt 0:02:08]} Bf8 {[%emt 0:11:16]} 19. Bxf8 {[%emt 0:02:10]} Rxf8 {[%emt 0:00:08]} 20. h4 {[%emt 0:01:00]} h5 {[%emt 0:06:54]} 21. Nfg5 {[%emt 0:01:31]} Kg7 {[%emt 0:01:44]} 22. Nd6 $16 {[%emt 0:05:35]} Bc8 {[%emt 0:03:24]} 23. g4 {[%emt 0:01:34]} hxg4 {[%emt 0:07:58]} 24. Qxg4 {[%emt 0:00:13]} Ne7 {[%emt 0:00:09]} 25. h5 {[%emt 0:02:01]} Nf5 {[%emt 0:00:57]} 26. Ngxf7 {[%emt 0:01:45]} 1-0

[Event "Emanuel Lasker Open 2017"]
[Site "Gorzow"]
[Date "2017.06.14"]
[Round "3"]
[White "Rudecki, Bartosz"]
[Black "Lukasiewicz, Krzysztof"]
[Result "0-1"]
[ECO "B12"]
[WhiteElo "2007"]
[BlackElo "2098"]
[Annotator "NA RC"]
[PlyCount "44"]
[EventDate "2017.??.??"]
[EventType "swiss"]
[EventCountry "POL"]
[SourceTitle "playchess.com"]
[Source "ChessBase"]
[SourceQuality "1"]
[TimeControl "40/5400+30:1800+30"]

{[%evp 11,44,-9,15,32767,32767,32767,32767,32767,32767,32767,32767,32767,-52,-57,-65,-108,-87,-199,-187,-163,-178,-247,0,32767,-116,-322,-320,-668,-695,-674,-678,-743,-635,-708,-761]} 1. e4 {[%emt 0:00:00]} c6 {[%emt 0:00:05]} 2. d4 {[%emt 0:00:21]} d5 {[%emt 0:00:05]} 3. f3 {[%emt 0:00:31]} dxe4 {[%emt 0:00:17]} 4. fxe4 {[%emt 0:00:06]} e5 {[%emt 0:00:04]} 5. Nf3 {[%emt 0:00:03]} exd4 {[%emt 0:00:05]} 6. Bc4 {[%emt 0:00:07]} Nf6 {[%emt 0:00:33]} 7. O-O {[%emt 0:00:20] B12: Caro-Kann: Advance Variation} Nbd7 {[%emt 0:05:53]} 8. Ng5 {[%emt 0:04:15]} (8. Bg5 Qb6 9. Nbd2 Bb4 10. e5 Nd5 11. Ne4 h6 12. a3 Bf8 13. Qe1 Nc5 14. Nd6+ Bxd6 15. exd6+ {0-1 (25) Kapnisis,S (2514)-Istratescu,A (2610) Peristeri 2010}) 8... Ne5 {[%emt 0:00:43]} 9. Nxf7 {[%emt 0:03:31]} Nxf7 {[%emt 0:00:07]} 10. Bxf7+ {[%emt 0:00:04]} Kxf7 {[%emt 0:00:04]} 11. e5 {[%emt 0:00:08] [#]} Qd5 $1 $146 {[%emt 0:08:12]} ({Predecessor:} 11... Be7 12. exf6 Bxf6 13. Bg5 Be6 14. Bxf6 gxf6 {½-½ (67) Topczewski,D (2221)-Pinkerton,J (2058) Torino 2011}) 12. exf6 {[%emt 0:02:04]} gxf6 {[%emt 0:00:05]} 13. Nd2 {[%emt 0:01:53]} Rg8 {[%emt 0:06:16]} 14. Nf3 {[%emt 0:00:45]} (14. Qf3 $17 {is the only way for White.} Qxf3 15. Nxf3) 14... Bh3 {[%emt 0:04:34]} 15. Rf2 {[%emt 0:04:11]} Bc5 {[%emt 0:00:56]} 16. Qd3 {[%emt 0:00:47]} (16. Ng5+ {was worth a try.} Rxg5 17. Bxg5) 16... Bg4 $2 {[%emt 0:26:32]} (16... Bf5 $19 17. Ne5+ Ke8 18. Qxf5 d3) 17. Bd2 {[%emt 0:04:25]} Rae8 {[%emt 0:13:42]} 18. Raf1 $2 {[%emt 0:00:48]} (18. Re1 $17) 18... Bf5 {[%emt 0:01:35]} 19. c4 $2 {[%emt 0:10:48]} (19. Qb3 Qxb3 20. cxb3) 19... Bxd3 {[%emt 0:07:20]} 20. cxd5 {[%emt 0:00:07]} Bxf1 {[%emt 0:00:17]} 21. Rxf1 {[%emt 0:00:08]} cxd5 {[%emt 0:00:14]} 22. b4 {[%emt 0:00:31]} Bb6 $19 {[%emt 0:00:23]} 0-1